[Event "FIDE WCCC U10 2018"]
[Site "Santiago de Compostela"]
[Date "2018.11.07"]
[Round "3"]
[White "Baryschyk, Sergey"]
[Black "Dang, Anh Minh"]
[Result "0-1"]
[ECO "D01"]
[WhiteElo "1468"]
[BlackElo "1817"]
[Annotator "NA RC"]
[PlyCount "118"]
[EventDate "2018.11.04"]
[EventType "swiss"]
[EventCountry "ESP"]
[SourceTitle "playchess.com"]
[Source "ChessBase"]
[SourceQuality "1"]
[TimeControl "40/5400+30:1800+30"]

{[%evp 8,117,-20,-49,-3,-4,-6,-41,40,-60,-43,-68,32767,32767,-57,-171,-147,-119,-64,-32,-32,-260,-77,-86,-21,-34,28,8,39,32,54,34,41,52,81,50,74,50,64,79,87,87,59,77,89,62,67,0,8,0,0,0,0,0,0,0,0,0,0,-395,193,56,32767,32767,32767,32767,544,-53,-52,-56,-52,32767,32767,32767,32767,32767,32767,32767,32767,-112,32767,32767,-1189,-1095,32767,32767,-881,32767,-820,32767,32767,-5439,-12841,32767,32767,-12851,-29979,-29969,-29982,-29981,-29983,32767,32767,32767,32767,-29981,-29986,-29984,-29987,-29986,-29988,-29988]} 1. d4 {[%emt 0:00:00]} Nf6 {[%emt 0:00:00]} 2. Nc3 {[%emt 0:00:00]} d5 {[%emt 0:00:00]} 3. Bg5 c6 {[%emt 0:00:00]} 4. f3 {[%emt 0:00:06]} h6 {[%emt 0:00:56]} 5. Bh4 {[%emt 0:00:42]} Bf5 {[%emt 0:10:40]} 6. Qd2 {[%emt 0:02:30] D00: 1 d4 d5: Unusual lines} Nbd7 {[%emt 0:00:33] LiveBook: 16 Games} (6... Bh7 7. e4 dxe4 8. fxe4 e5 9. Bxf6 Qxf6 10. dxe5 Qxe5 11. O-O-O Be7 12. Nf3 Qc7 13. e5 O-O {½-½ (29) Romanov,E (2628)-Admiraal,M (2465) Teplice 2018}) 7. O-O-O {[%emt 0:00:28]} b5 {[%emt 0:00:45] [#]} ({Black should try} 7... e6 $11) 8. g4 $146 {[%emt 0:06:48]} ({Besser ist Predecessor:} 8. e4 $1 $14 {[%mdl 512]} dxe4 (8... Be6 9. e5 g5 10. Bf2 Nh5 11. h4 Bg7 12. hxg5 hxg5 13. Kb1 f6 14. Nh3 Qa5 15. Bd3 b4 16. Ne2 Nb6 17. g4 Nc4 18. Qe1 Nf4 19. Nexf4 {1-0 (19) Lopez Gracia,F (2346)-Fontana Sotomayor,L (2315) Aragon 2016}) 9. d5 cxd5 10. Bxb5) 8... Bh7 {[%emt 0:01:39]} 9. e3 {[%emt 0:01:33]} b4 {[%emt 0:01:03]} 10. Nce2 {[%emt 0:00:37]} e6 {[%emt 0:00:59]} 11. Bg3 {[%emt 0:01:03]} (11. Bxf6 $17 Nxf6 12. Nh3) 11... Qa5 {[%emt 0:02:00]} 12. Kb1 {[%emt 0:00:40] [#]} Nb6 {[%emt 0:02:11]} (12... Ne4 $1 $17 {[%mdl 512]} 13. Qc1 (13. fxe4 Bxe4) 13... c5 14. dxc5 Nxg3 15. hxg3 Bxc5) 13. Nc1 $1 {[%emt 0:02:27]} Nc4 {[%emt 0:02:01]} 14. Qf2 $2 {[%emt 0:00:30] [#]} ({Better is} 14. Bxc4 $15 dxc4 15. e4) 14... Be7 $2 {[%emt 0:08:09]} (14... Nxb2 $1 $19 {[%mdl 512] is more deadly.} 15. Kxb2 {[#]} b3 $1 {[%mdl 512]} 16. axb3 (16. Nxb3 $2 {is a self mate.} Ba3+ 17. Kb1 Qc3 18. h4 Qb2#) 16... Ba3+ 17. Ka2 (17. Kb1 $2 Qc3 $19) 17... Bxc1+ 18. Kb1 Ba3) 15. Bd3 {[#]} Bxd3 {[%emt 0:15:01]} ({Black should try} 15... Qb6 $1 $17) 16. cxd3 {[%emt 0:01:04]} Nb6 {[%emt 0:01:08]} 17. Nge2 {[%emt 0:00:46]} Nfd7 {[%emt 0:01:21]} 18. h4 {[%emt 0:01:00]} c5 {[%emt 0:03:05]} 19. Nb3 {[%emt 0:02:37]} Qb5 {[%emt 0:00:40]} 20. dxc5 {[%emt 0:00:34]} Nxc5 {[%emt 0:00:09]} 21. Ned4 {[%emt 0:01:09]} Qd7 {[%emt 0:01:22]} 22. f4 {[%emt 0:05:18]} Nxb3 {[%emt 0:05:03]} 23. Nxb3 {[%emt 0:00:08]} a5 {[%emt 0:03:36]} 24. f5 {[%emt 0:02:28]} exf5 {[%emt 0:09:59]} 25. gxf5 {[%emt 0:00:26]} a4 {[%emt 0:00:45]} 26. Nd4 {[%emt 0:00:28]} O-O {[%emt 0:00:41]} 27. Rhg1 {[%emt 0:00:45]} (27. Be5 $16 Bd6 28. Qg3 Bxe5 29. Qxe5) 27... Bf6 {[%emt 0:01:20]} 28. e4 {[%emt 0:00:43]} dxe4 {[%emt 0:06:53]} 29. dxe4 {[%emt 0:00:07]} Nc4 {[%emt 0:00:29]} 30. Qe2 {[%emt 0:06:10]} Rac8 $1 {[%emt 0:05:30]} 31. e5 $1 {[%emt 0:01:36]} ({Wrong is} 31. Ne6 $2 Qb5 $19) 31... Rfe8 {[%emt 0:00:19]} 32. Ne6 $1 {[%emt 0:00:21]} Qb5 {[%emt 0:00:10]} 33. Qg2 $2 {[%emt 0:04:33]} ({Much weaker is} 33. Nd4 Qc5 $17) (33. Ka1 $1 $11 {and White has nothing to worry.} Bxe5 34. Bxe5 Qxe5 35. Qxe5 Nxe5 36. Nxg7) 33... Nxe5 $4 {[%emt 0:03:06] [#]} (33... fxe6 $19 34. exf6 Qxf5+ 35. Ka1 Ne3) 34. Rd5 {[%emt 0:02:00]} (34. Nxg7 $1 $18 {[%mdl 512]} Nc4 (34... Bxg7 35. Rd5) 35. Nxe8 Qxf5+ 36. Ka1 Bxb2+ 37. Qxb2 Nxb2 38. Nd6 Nxd1 39. Bf4+ (39. Nxf5 $2 {leads to mate.} Rc1#) 39... Qg6 40. Rxg6+ fxg6 41. Nxc8) 34... Qxd5 {[%emt 0:06:56]} 35. Qxd5 {[%emt 0:00:12]} fxe6 {[%emt 0:00:04]} 36. fxe6 Nc4 $2 {[%emt 0:00:34]} ({Better is} 36... Rcd8 $1 $14 37. Qe4 Rxe6) 37. Rc1 $2 {[%emt 0:02:52]} (37. e7+ $1 $18 Kh8 38. Rc1) 37... Red8 {[%emt 0:00:53]} 38. Qxc4 {[%emt 0:07:25]} Rxc4 {[%emt 0:00:10]} 39. Rxc4 {[%emt 0:00:04]} b3 {[%emt 0:00:51]} 40. axb3 {[%emt 0:00:00]} axb3 {[%emt 0:00:00]} 41. Kc1 {[%emt 0:03:42]} Rd3 {[%emt 0:02:21]} 42. Bf2 {[%emt 0:02:32]} g5 {[%emt 0:13:53]} 43. Re4 {[%emt 0:02:13]} (43. Be1 $11 {keeps the balance.}) 43... Be7 {[%emt 0:02:49]} 44. Re3 {[%emt 0:01:00]} Rxe3 {[%emt 0:00:41]} 45. Bxe3 {[%emt 0:00:08]} gxh4 {[%emt 0:00:36]} 46. Kd1 {[%emt 0:03:55]} Bf6 {[%emt 0:02:04]} 47. Ke2 {[%emt 0:02:07]} Bxb2 {[%emt 0:00:37]} 48. e7 {[%emt 0:01:30]} Kf7 {[%emt 0:00:11]} 49. e8=Q+ Kxe8 {[%emt 0:00:07]} 50. Bxh6 {[%emt 0:00:29]} Be5 {[%emt 0:01:31]} 51. Bc1 {[%emt 0:01:47]} h3 {[%emt 0:00:18]} 52. Kf2 {[%emt 0:00:26]} h2 {[%emt 0:00:10]} 53. Kg2 {[%emt 0:00:05] [#]} Kd7 {[%emt 0:00:04]} (53... h1=R $1 $19 54. Kxh1 Kd7) 54. Ba3 {[%emt 0:00:34]} Kc6 {[%emt 0:00:09]} 55. Bc1 {[%emt 0:00:22]} Kd5 {[%emt 0:00:05]} 56. Ba3 {[%emt 0:00:16]} Kc4 {[%emt 0:00:04]} (56... h1=R $19 57. Kxh1 Bd6) 57. Bc1 {[%emt 0:00:09]} Kd3 {[%emt 0:00:08]} ({Stronger than} 57... b2 {[#]} 58. Bxb2 $1 {[%mdl 512]} Bxb2 59. Kxh2 $11) 58. Kh1 {[%emt 0:00:28]} Kc2 {[%emt 0:00:04]} ({Stronger than} 58... b2 {[#]} 59. Bxb2 $1 {[%mdl 512]} Bxb2 60. Kxh2 $11) 59. Ba3 {[%emt 0:00:13]} Bd6 {[%emt 0:00:07]} 0-1